[Event "35th Roquetas Festival 2024"]
[Site "Roquetas de Mar"]
[Date "2024.01.05"]
[Round "6.7"]
[White "Vergara Anton, Diego"]
[Black "Fiorito, Joaquin"]
[Result "1/2-1/2"]
[ECO "A05"]
[WhiteElo "2346"]
[BlackElo "2401"]
[Annotator "RC"]
[PlyCount "67"]
[EventDate "2024.01.02"]
[EventType "swiss"]
[EventCountry "ESP"]
[SourceTitle "playchess.com"]
[Source "ChessBase"]
[SourceQuality "1"]
[TimeControl "5400+30"]

1. Nf3 {[%emt 0:00:03]} Nf6 {[%emt 0:00:07]} 2. e3 {[%emt 0:00:08]} g6 {[%emt 0:00:33]} 3. d4 {[%emt 0:00:43]} Bg7 {[%emt 0:00:05]} 4. Be2 {[%emt 0:00:20]} O-O {[%emt 0:00:08]} 5. O-O {[%emt 0:00:07]} d6 {[%emt 0:01:00]} 6. c4 {[%emt 0:00:14]} Nbd7 {[%emt 0:00:29]} 7. Nc3 {[%emt 0:00:09]} a6 {[%emt 0:02:23]} 8. Qc2 {[%emt 0:01:37]} c6 {[%emt 0:00:46]} 9. Rd1 {[%emt 0:03:19]} b5 {[%emt 0:03:36]} 10. a3 {[%emt 0:01:09]} bxc4 {[%emt 0:03:33]} 11. Bxc4 {[%emt 0:00:03]} Bb7 {[%emt 0:02:40]} 12. e4 {[%emt 0:05:53]} d5 {[%emt 0:02:02]} 13. Bd3 {[%emt 0:02:19]} dxe4 {[%emt 0:00:59]} 14. Nxe4 {[%emt 0:00:35]} Nxe4 {[%emt 0:01:26]} 15. Bxe4 {[%emt 0:00:01]} Nf6 {[%emt 0:00:09]} 16. Bd3 {[%emt 0:01:23]} c5 {[%emt 0:02:39]} 17. dxc5 {[%emt 0:10:02]} Qc7 {[%emt 0:00:24]} 18. Be2 {[%emt 0:04:59]} Rac8 {[%emt 0:03:11]} 19. h3 {[%emt 0:08:46]} Qxc5 {[%emt 0:01:13]} 20. Qxc5 {[%emt 0:00:06]} Rxc5 {[%emt 0:00:04]} 21. Be3 {[%emt 0:02:29]} Rc2 {[%emt 0:01:45]} 22. Rd2 {[%emt 0:00:36]} Rxd2 {[%emt 0:06:20]} 23. Bxd2 {[%emt 0:00:27]} Ne4 {[%emt 0:01:45]} 24. Be3 {[%emt 0:06:33]} Rc8 {[%emt 0:05:04]} 25. Rc1 {[%emt 0:04:08]} Rxc1+ {[%emt 0:01:21]} 26. Bxc1 {[%emt 0:00:02]} a5 {[%emt 0:00:53]} 27. Nd2 {[%emt 0:03:51]} Bxb2 {[%emt 0:21:56]} 28. Bxb2 {[%emt 0:00:40]} Nxd2 {[%emt 0:00:05]} 29. Bc3 {[%emt 0:00:53]} Nb1 {[%emt 0:00:28]} 30. Bxa5 {[%emt 0:00:50]} Nxa3 {[%emt 0:00:08]} 31. Bd3 {[%emt 0:01:01]} Bc6 {[%emt 0:00:46]} 32. Bb4 {[%emt 0:00:10]} Nb5 {[%emt 0:00:05]} 33. Bxb5 {[%emt 0:00:13]} Bxb5 {[%emt 0:00:09]} 34. Bxe7 {[%emt 0:00:04]} 1/2-1/2

[Event "35th Roquetas Festival 2024"]
[Site "Roquetas de Mar"]
[Date "2024.01.05"]
[Round "6.8"]
[White "Schenderowitsch, Michael"]
[Black "Peng, Li Min"]
[Result "0-1"]
[ECO "D37"]
[WhiteElo "2281"]
[BlackElo "2575"]
[Annotator "TA"]
[PlyCount "134"]
[EventDate "2024.01.02"]
[EventType "swiss"]
[EventCountry "ESP"]
[SourceTitle "playchess.com"]
[Source "ChessBase"]
[SourceQuality "1"]
[TimeControl "5400+30"]

{[%evp 10,134,24,0,9,16,18,8,19,20,36,12,25,0,0,0,16,0,0,0,63,54,54,58,61,41,52,0,0,0,0,0,0,0,0,-8,-8,-14,-23,-20,-14,-52,0,0,0,0,0,0,0,0,0,0,0,-12,0,0,0,0,0,0,0,0,0,-25,-29,-60,-60,-60,-30,-30,-30,-30,-35,-31,-32,-32,-20,-20,-20,-55,0,0,0,0,0,0,0,0,0,-35,-8,-40,-18,-78,-68,-186,-205,-200,-195,-427,-404,-790,-787,-703,-646,-2655,-2086,-12838,-993,-12826,-12823,-5808,-1690,-6137,-598,-588,-585,-529,-483,-754,-746,-679,-608,-29984,-29985,-29993,-12843]} 1. d4 {[%emt 0:00:30]} Nf6 {[%emt 0:02:26]} 2. c4 {[%emt 0:00:00]} e6 {[%emt 0:00:06]} 3. Nf3 {[%emt 0:00:00]} d5 {[%emt 0:00:16]} 4. Nc3 {[%emt 0:00:00]} dxc4 {[%emt 0:00:10]} 5. e3 {[%emt 0:00:16]} a6 {[%emt 0:00:08]} 6. a4 {[%emt 0:00:26]} b6 {[%emt 0:00:38] D24: Queen's Gambit Accepted: 3 Nf3 Nf6 4 Nc3.} 7. Bxc4 {[%emt 0:00:33]} Bb7 {[%emt 0:00:24] Against e4} 8. O-O {[%emt 0:00:26][%cal Oe3e4]} Bb4 {[%emt 0:00:11] The position is equal.} 9. Qe2 {[%emt 0:03:48]} Nbd7 {[%emt 0:00:45]} 10. Rd1 {[%emt 0:00:46]} (10. Bd3 $5 {[%cal Re3e4]}) 10... O-O {[%emt 0:01:43]} 11. Na2 {[%emt 0:09:15]} Bd6 {[%emt 0:03:55]} 12. Nc3 {[%emt 0:00:42]} Bb4 {[%emt 0:23:57]} 13. Na2 {[%emt 0:00:16]} Bd6 {[%emt 0:02:47]} 14. Nc3 {[%emt 0:00:08]} Qe7 {[%emt 0:00:48]} (14... Bb4 $11) 15. e4 $14 {[%emt 0:04:07] e5 is the strong threat.} e5 {[%emt 0:01:27]} 16. Bg5 {[%emt 0:15:30] [#]} exd4 $146 {[%emt 0:25:54]} ({Predecessor:} 16... h6 17. Bh4 c6 18. d5 c5 19. Nd2 Rfb8 20. Nf1 g6 21. Ne3 Qf8 22. Bxf6 Nxf6 {0-1 Sanchez Enriquez,O (2342)-Cardoso Cardoso,J (2411) Mexico City Fenamac GM 1st 2021 (9)}) 17. Nxd4 {[%emt 0:20:09]} (17. Rxd4 Ne5 $11) 17... Bxe4 {[%emt 0:01:44]} 18. Nxe4 {[%emt 0:24:14]} (18. Bxa6 $14 Bg6 19. Qxe7 Bxe7 20. Bb5) 18... Qxe4 $11 {[%emt 0:00:15]} 19. Bxa6 {[%emt 0:01:44]} Qg6 {[%emt 0:02:10]} 20. Bxf6 {[%emt 0:05:06]} Qxf6 {[%emt 0:00:04]} 21. Bb5 {[%emt 0:00:53]} Ne5 {[%emt 0:00:34][%cal Bd7e5,Be5g4,Bg4e3][%mdl 32]} 22. Qe4 {[%emt 0:00:56]} Bc5 {[%emt 0:05:38]} 23. Qf5 {[%emt 0:08:08]} Qxf5 {[%emt 0:00:55]} 24. Nxf5 {[%emt 0:00:01]} Ng4 {[%emt 0:00:08]} 25. Ne3 {[%emt 0:00:49]} Bxe3 {[%emt 0:02:18]} (25... Nxe3 $15 26. fxe3 Bxe3+ 27. Kf1 Bc5) 26. fxe3 {[%emt 0:00:01]} Nxe3 {[%emt 0:00:05]} 27. Rd7 {[%emt 0:01:02]} c5 {[%emt 0:00:04]} 28. Re1 {[%emt 0:01:11]} Nf5 {[%emt 0:00:55]} 29. b4 {[%emt 0:00:55]} cxb4 {[%emt 0:02:42]} 30. Rb1 {[%emt 0:00:05]} Rac8 {[%emt 0:01:07]} 31. Bd3 {[%emt 0:00:34]} Ne3 {[%emt 0:01:35]} 32. Rxb4 {[%emt 0:00:34]} Rc6 {[%emt 0:00:04]} 33. Re4 {[%emt 0:01:30]} Rc1+ {[%emt 0:02:15]} 34. Kf2 {[%emt 0:00:06]} Nd1+ {[%emt 0:00:03]} 35. Kf3 {[%emt 0:00:34]} g6 {[%emt 0:00:04]} 36. Rc4 {[%emt 0:02:02]} Ra1 {[%emt 0:00:27]} 37. Bc2 {[%emt 0:00:52]} Ra3+ {[%emt 0:02:53]} 38. Rd3 {[%emt 0:00:38]} Nb2 {[%emt 0:00:05][%mdl 64] [#] Pin} 39. Rxa3 {[%emt 0:00:15]} Nxc4 {[%emt 0:00:02][%mdl 4096] Endgame KRB-KRN} 40. Rc3 {[%emt 0:00:19]} Na5 {[%emt 0:00:18]} 41. Rc7 {[%emt 0:00:56]} Rd8 {[%emt 0:00:29]} 42. Ke3 {[%emt 0:00:37]} Kg7 43. Bb1 {[%emt 0:00:22]} Re8+ {[%emt 0:01:58]} 44. Kf2 {[%emt 0:00:01]} Re5 {[%emt 0:01:30]} (44... Kf8 $15) 45. Ba2 {[%emt 0:00:30]} Rf5+ {[%emt 0:00:05]} 46. Ke3 {[%emt 0:00:16]} g5 {[%emt 0:00:02]} 47. g3 h5 {[%emt 0:00:22]} 48. Rd7 {[%emt 0:01:29]} Nc6 {[%emt 0:02:23]} 49. Rd6 {[%emt 0:00:46]} Rc5 {[%emt 0:00:06]} 50. Bb1 {[%emt 0:00:39]} Ne5 {[%emt 0:03:02] Strongly threatening ...Nc4+.} 51. Ke2 {[%emt 0:00:05]} (51. Rxb6 $11 {remains equal.} Nc4+ 52. Kd4 Nxb6 53. Kxc5 Nxa4+ 54. Kd4) 51... b5 $17 {[%emt 0:00:50][%cal Bb6b5,Bb5b4,Bb4b3,Bb3b2][%mdl 32] Black keeps a firm grip on the game.} 52. a5 {[%emt 0:00:57]} (52. Ra6 $15) 52... Nc4 $19 {[%emt 0:00:15][%csl LRa5,LRd6]} 53. Ra6 {[%emt 0:00:23]} b4 {[%emt 0:00:13]} 54. Ba2 $2 {[%emt 0:00:31]} (54. Ra8 {was necessary.}) 54... Nxa5 {[%emt 0:00:18] ...Rc2+ would be deadly.} 55. Kd1 {[%emt 0:00:35] Prevents Rc2} (55. Bb1 $142 b3 56. Kd3) 55... b3 {[%emt 0:00:12]} 56. Bb1 {[%emt 0:00:10]} b2 {[%emt 0:00:03] Threatens to win with ...Rc1+.} 57. Bc2 {[%emt 0:00:05]} Nc4 {[%emt 0:00:10] ( -> ...Ne3+)} 58. Bb1 {[%emt 0:00:48]} Ne3+ {[%emt 0:00:14]} (58... Na3 $142 59. Rxa3 Rc1+ 60. Kd2 Rxb1) 59. Ke2 {[%emt 0:00:15]} Rc1 {[%emt 0:00:13]} 60. Bd3 {[%emt 0:00:42]} Nd5 {[%emt 0:00:15]} (60... b1=B 61. Bxb1 Rxb1 62. Kxe3 $17) (60... Nc2 $142 61. Rb6 b1=Q 62. Rxb1 Rxb1 63. Bxc2 Rh1) 61. Ra5 {[%emt 0:00:59]} Nc3+ {[%emt 0:00:07]} (61... b1=B 62. Bxb1 Rxb1 63. Rxd5 $17) (61... b1=N 62. Rxd5 Nc3+ 63. Kd2 Nxd5 64. Kxc1 $17) (61... b1=Q 62. Bxb1 Rxb1 63. Rxd5 $17) (61... Nb4 $142 62. Be4 Nc2) 62. Kd2 {[%emt 0:00:13]} f6 ({Less strong is} 62... b1=B 63. Kxc1 Bxd3 64. Kd2 $16 (64. Rxg5+ Kh6 $17)) (62... b1=Q 63. Bxb1 Rxb1 64. Kxc3 $17) 63. Ra7+ {[%emt 0:00:16]} Kf8 {[%emt 0:01:30]} 64. Ra6 {[%emt 0:01:02]} (64. Rh7 $142 Nb5 65. Rxh5) 64... Ke7 {[%emt 0:00:11]} ({Not} 64... b1=B 65. Ra8+ Ke7 66. Ra7+ Kd6 67. Kxc1 Bxd3 68. Kd2 $16) 65. Ra7+ {[%emt 0:00:28]} Kd6 {[%emt 0:00:05]} 66. Bc2 {[%emt 0:00:32] [#]} Rxc2+ $1 {[%emt 0:00:13][%mdl 64] Remove Defender, Promotion} 67. Kd3 (67. Kxc2 b1=Q+) 67... Ke5 {Weighted Error Value: White=0.61/Black=0.19 (very precise)} (67... b1=Q $142 68. Ra1 Qb2 69. Ra6+ Ke5 70. Re6+ Kxe6 71. h4 Nd5 72. hxg5 Qc3+ {[%mdl 64] Skewer} 73. Ke4 f5#) 0-1

[Event "35th Roquetas Festival 2024"]
[Site "Roquetas de Mar"]
[Date "2024.01.05"]
[Round "6.9"]
[White "Korneev Leskova, Svyatoslav"]
[Black "Fernandez, Daniel Howard"]
[Result "0-1"]
[ECO "A11"]
[WhiteElo "2248"]
[BlackElo "2525"]
[Annotator "TA"]
[PlyCount "132"]
[EventDate "2024.01.02"]
[EventType "swiss"]
[EventCountry "ESP"]
[SourceTitle "playchess.com"]
[Source "ChessBase"]
[SourceQuality "1"]
[TimeControl "5400+30"]

{[%evp 9,132,17,18,5,2,0,30,24,35,31,42,7,7,9,14,9,14,0,0,0,8,-18,12,0,0,0,0,0,0,-7,0,0,0,0,0,0,0,0,0,0,0,0,0,0,0,0,0,0,0,0,-35,-83,-79,-14,-43,-43,-36,-83,-85,-85,-85,-85,-85,-158,-34,-34,-34,-34,-34,-296,-17,-1111,-816,-12834,-12834,-12841,-12841,-12844,-12842,-12843,-12843,-12844,-12844,-12848,-12848,-12850,-12849,-12850,-12850,-12850,-27999,-27999,-27999,-27999,-27999,-27999,-27999,-27999,-27999,-27999,-27999,-27999,-27999,-27999,-27999,-27999,-27999,-27999,-27999,-27999,-27999,-27999,-27999,-27999,-27999,-27999,-27999,-27999,-27999,-27999,-27999,-27999,-27999,-27999,-27999]} 1. c4 {[%emt 0:00:47]} c6 {[%emt 0:09:03]} 2. Nf3 {[%emt 0:00:26]} d5 {[%emt 0:00:02]} 3. e3 {[%emt 0:00:24]} Nf6 {[%emt 0:00:10]} 4. b3 {[%emt 0:00:24]} g6 {[%emt 0:00:08]} 5. Bb2 {[%emt 0:00:08]} Bg7 {[%emt 0:00:03]} 6. d3 {[%emt 0:02:31] A12: English Opening: 1...c6 with b3 by White.} O-O {[%emt 0:00:23]} 7. Be2 {[%emt 0:02:14]} Bg4 {[%emt 0:00:04]} 8. Nbd2 {[%emt 0:01:42] White has an edge.} e6 {[%emt 0:02:41]} 9. O-O {[%emt 0:02:16]} Nbd7 {[%emt 0:00:24]} 10. Ne5 {[%emt 0:08:16]} Bxe2 {[%emt 0:00:27]} 11. Qxe2 {[%emt 0:00:05] [#]} a5 $146 {[%emt 0:00:46]} ({Predecessor:} 11... Nxe5 12. Bxe5 Nd7 13. Bxg7 Kxg7 14. f4 Qf6 15. Nf3 a5 16. Rab1 Rfd8 17. d4 Qe7 {½-½ Torvenyi,R (2027)-Sykora,J (2096) CZE-chT2D 1314 2013 (5.6)}) 12. Nxd7 {[%emt 0:01:20]} Qxd7 {[%emt 0:00:13]} 13. a3 {[%emt 0:00:24]} Rfd8 {[%emt 0:02:49]} 14. Rfd1 {[%emt 0:08:06]} Qe7 {[%emt 0:00:01]} 15. Be5 {[%emt 0:01:38]} h5 {[%emt 0:01:05]} 16. d4 {[%emt 0:04:18]} Ne4 {[%emt 0:01:53] ...Nc3 would be deadly.} 17. Bxg7 {[%emt 0:01:40]} Kxg7 {[%emt 0:01:12]} ({Much less strong is} 17... Nc3 18. Qd3 Nxd1 19. Be5 $16) 18. Nxe4 {[%emt 0:20:55]} dxe4 {[%emt 0:00:18]} 19. Qb2 {[%emt 0:00:14]} h4 {[%emt 0:00:08][%cal Oh4h3]} 20. h3 {[%emt 0:03:05]} Rd7 {[%emt 0:09:15]} 21. d5+ {[%emt 0:15:41]} Qf6 $1 {[%emt 0:02:39]} 22. Qxf6+ {[%emt 0:00:10]} Kxf6 {[%emt 0:00:02]} 23. dxe6 {[%emt 0:02:53]} Kxe6 {[%emt 0:00:03] Hoping for ...Rad8.} 24. Rxd7 {[%emt 0:00:22]} Kxd7 $11 {[%emt 0:00:02][%mdl 4096] Endgame KR-KR} 25. Rd1+ {[%emt 0:00:31]} Kc7 26. Rd4 {[%emt 0:01:18]} Re8 {[%emt 0:07:36]} 27. Kf1 {[%emt 0:00:22]} f5 {[%emt 0:01:51]} 28. Ke2 {[%emt 0:01:50]} b6 {[%emt 0:01:06][%cal Oa5a4]} 29. f3 {[%emt 0:01:50]} c5 {[%emt 0:00:38]} 30. Rd5 {[%emt 0:05:38] [#]} (30. Rd1 $15) 30... a4 $1 {[%emt 0:00:02]} 31. bxa4 {[%emt 0:00:44][%cal Oa4a5]} exf3+ {[%emt 0:00:05]} 32. gxf3 {[%emt 0:04:56][%cal Oa4a5]} Ra8 {[%emt 0:00:02]} 33. Rd3 {[%emt 0:00:08]} (33. Re5 $1 $15) 33... Rxa4 $17 34. Rc3 {[%emt 0:00:05]} g5 {[%emt 0:00:38]} 35. Kd3 {[%emt 0:02:00]} Kd6 {[%emt 0:00:22] Black is more active.} 36. Rb3 {[%emt 0:00:49] [#]} Ke5 {[%emt 0:00:07]} (36... b5 $1 $17 {[%cal Rb5c4]} 37. Rxb5 Rxa3+ 38. Ke2 Ra2+ 39. Kf1 Rh2 40. Rb6+ Ke7 41. Rb7+ Kf6 42. Rb6+ Kg7 43. Rb7+ Kg6 44. Rb6+ Kg7 45. Rb7+ Kf6 46. Rb6+ Kg7) 37. Rxb6 $15 {[%emt 0:00:59]} Rxa3+ {[%emt 0:00:10]} 38. Ke2 {[%emt 0:00:56]} Ra2+ {[%emt 0:05:58]} 39. Kd3 $2 {[%emt 0:00:20][%mdl 8192] [#] Black continues to play with concentration.} (39. Kf1 $1 $15) 39... Rf2 $2 {[%emt 0:11:32]} (39... Rh2 $1 $19 {[%cal Rh2h3]} 40. Rc6 Rxh3 41. Rxc5+ Kf6 42. Rc6+ Kf7 43. Rc7+ Kg6) 40. Rg6 $2 {[%emt 0:00:37][%mdl 8192]} (40. f4+ $11 gxf4 41. exf4+ Kxf4 42. Rb5) 40... Rxf3 $19 {[%emt 0:00:03]} 41. Rxg5 {[%emt 0:00:05]} Rxh3 {[%emt 0:00:09]} 42. Rh5 {[%emt 0:02:26]} Rh1 {[%emt 0:01:18]} 43. Ke2 {[%emt 0:02:05]} Ke4 {[%emt 0:02:41]} 44. Kf2 {[%emt 0:00:32]} Rh2+ {[%emt 0:00:46]} 45. Kg1 {[%emt 0:00:25]} Rc2 {[%emt 0:01:19]} 46. Rxh4+ {[%emt 0:00:25]} Kxe3 {[%emt 0:00:04]} 47. Rh5 {[%emt 0:01:16]} Ke4 {[%emt 0:00:03]} 48. Rh4+ {[%emt 0:02:09]} f4 {[%emt 0:00:03]} 49. Rh5 {[%emt 0:00:40]} Rxc4 {[%emt 0:00:10]} 50. Rh8 {[%emt 0:00:17] Black mates.} Ke3 {[%emt 0:00:08]} 51. Re8+ {[%emt 0:00:27]} Kf3 {[%emt 0:00:23]} 52. Re7 {[%emt 0:00:53]} Rc2 {[%emt 0:00:09]} 53. Rh7 {[%emt 0:00:37]} c4 {[%emt 0:00:14]} 54. Rh3+ {[%emt 0:00:52]} Kg4 {[%emt 0:00:26]} 55. Rh8 {[%emt 0:00:28]} Rd2 {[%emt 0:00:31]} 56. Rc8 {[%emt 0:00:07]} Kg3 {[%emt 0:00:16]} 57. Rg8+ {[%emt 0:00:37]} Kf3 {[%emt 0:00:03]} 58. Rc8 {[%emt 0:00:08]} Rd4 {[%emt 0:00:05]} 59. Rc7 {[%emt 0:00:41]} Ke3 {[%emt 0:00:13]} 60. Kf1 {[%emt 0:00:34]} Rd1+ {[%emt 0:00:23]} 61. Kg2 {[%emt 0:00:06]} f3+ {[%emt 0:00:06]} 62. Kg3 {[%emt 0:00:14]} Rg1+ {[%emt 0:00:54]} 63. Kh2 {[%emt 0:00:06]} Rg4 {[%emt 0:00:32]} 64. Kh3 {[%emt 0:01:09]} Rf4 {[%emt 0:00:29]} 65. Kg3 {[%emt 0:01:06]} f2 {[%emt 0:00:11]} 66. Re7+ {[%emt 0:00:06]} Kd4 {[%emt 0:00:21] Weighted Error Value: White=0.37/Black=0.18 (very precise)} 0-1

[Event "35th Roquetas Festival 2024"]
[Site "Roquetas de Mar"]
[Date "2024.01.05"]
[Round "6.10"]
[White "Tejedor Fuente, Enrique"]
[Black "Del Prado Rodriguez, Xulio"]
[Result "1/2-1/2"]
[ECO "A13"]
[WhiteElo "2395"]
[BlackElo "2294"]
[Annotator "RC"]
[PlyCount "138"]
[EventDate "2024.01.02"]
[EventType "swiss"]
[EventCountry "ESP"]
[SourceTitle "playchess.com"]
[Source "ChessBase"]
[SourceQuality "1"]
[TimeControl "5400+30"]

1. c4 {[%emt 0:05:40]} e6 {[%emt 0:02:05]} 2. Nf3 {[%emt 0:00:34]} d5 {[%emt 0:00:08]} 3. e3 {[%emt 0:00:15]} Nf6 {[%emt 0:00:27]} 4. b3 {[%emt 0:00:38]} dxc4 {[%emt 0:07:08]} 5. Bxc4 {[%emt 0:05:12]} a6 {[%emt 0:01:50]} 6. O-O {[%emt 0:00:11]} c5 {[%emt 0:00:42]} 7. Bb2 {[%emt 0:00:28]} Be7 {[%emt 0:05:23]} 8. d4 {[%emt 0:03:53]} O-O {[%emt 0:11:05]} 9. Nbd2 {[%emt 0:01:26]} Nc6 {[%emt 0:03:45]} 10. dxc5 {[%emt 0:08:36]} Bxc5 {[%emt 0:01:47]} 11. Qe2 {[%emt 0:04:27]} Qe7 {[%emt 0:07:33]} 12. a3 {[%emt 0:03:40]} e5 {[%emt 0:07:16]} 13. b4 {[%emt 0:01:36]} Bd6 {[%emt 0:06:57]} 14. Ng5 {[%emt 0:04:40]} Bf5 {[%emt 0:07:32]} 15. Qf3 {[%emt 0:04:00]} Bg6 {[%emt 0:07:31]} 16. Nde4 {[%emt 0:10:03]} Nxe4 {[%emt 0:01:33]} 17. Nxe4 {[%emt 0:00:10]} Rfd8 {[%emt 0:07:17]} 18. Rac1 {[%emt 0:09:45]} Rac8 {[%emt 0:02:10]} 19. Bd5 {[%emt 0:02:51]} Bb8 {[%emt 0:02:53]} 20. Nc5 {[%emt 0:14:21]} a5 {[%emt 0:08:47]} 21. e4 {[%emt 0:03:18]} axb4 {[%emt 0:02:09]} 22. axb4 {[%emt 0:00:01]} Bd6 {[%emt 0:03:52]} 23. Qb3 {[%emt 0:01:03]} b6 {[%emt 0:00:31]} 24. Ne6 {[%emt 0:02:52]} fxe6 {[%emt 0:00:15]} 25. Bxc6 {[%emt 0:00:06]} Bxb4 {[%emt 0:00:27]} 26. Bxe5 {[%emt 0:01:52]} Bc5 {[%emt 0:00:09]} 27. Qa4 {[%emt 0:01:18]} Rd2 {[%emt 0:00:16]} 28. Rcd1 {[%emt 0:07:56]} Rxd1 {[%emt 0:00:06]} 29. Rxd1 {[%emt 0:00:05]} Bxf2+ {[%emt 0:00:09]} 30. Kxf2 {[%emt 0:00:24]} Qc5+ {[%emt 0:00:01]} 31. Qd4 {[%emt 0:00:17]} Qxc6 {[%emt 0:00:52]} 32. Qd7 {[%emt 0:01:48]} Rf8+ {[%emt 0:01:18]} 33. Kg3 {[%emt 0:03:02]} Qxd7 {[%emt 0:00:20]} 34. Rxd7 {[%emt 0:00:02]} Rf7 {[%emt 0:00:10]} 35. Rd8+ {[%emt 0:00:10]} Rf8 {[%emt 0:00:06]} 36. Rd6 {[%emt 0:01:07]} Bxe4 {[%emt 0:00:34]} 37. Rxe6 {[%emt 0:00:38]} Bd5 {[%emt 0:01:45]} 38. Rxb6 {[%emt 0:00:02]} h6 {[%emt 0:00:07]} 39. Rd6 {[%emt 0:00:40]} Bb3 {[%emt 0:00:24]} 40. Rb6 {[%emt 0:00:15]} Bd5 {[%emt 0:00:05]} 41. Rb5 {[%emt 0:01:02]} Bc4 {[%emt 0:00:08]} 42. Rb4 {[%emt 0:00:32]} Be6 {[%emt 0:00:14]} 43. h3 {[%emt 0:00:22]} Rf7 {[%emt 0:00:08]} 44. Kh2 {[%emt 0:00:31]} Kh7 {[%emt 0:00:07]} 45. g4 {[%emt 0:00:31]} Bd5 {[%emt 0:00:10]} 46. Rb2 {[%emt 0:00:36]} Ra7 {[%emt 0:00:11]} 47. Rd2 {[%emt 0:00:23]} Ra2 {[%emt 0:00:06]} 48. Bb2 {[%emt 0:00:21]} Bf7 {[%emt 0:00:42]} 49. Kg3 {[%emt 0:00:21]} Ra7 {[%emt 0:00:39]} 50. h4 {[%emt 0:00:31]} Rb7 {[%emt 0:00:24]} 51. Bc3 {[%emt 0:00:56]} Be6 {[%emt 0:00:23]} 52. Re2 {[%emt 0:00:07]} Bc4 {[%emt 0:00:06]} 53. Re4 {[%emt 0:00:21]} Bd5 {[%emt 0:00:08]} 54. Rd4 {[%emt 0:00:24]} Bf7 {[%emt 0:00:08]} 55. Rd6 {[%emt 0:00:55]} Rb3 {[%emt 0:00:38]} 56. Rc6 Rb7 {[%emt 0:00:05]} 57. h5 {[%emt 0:00:59]} Bd5 {[%emt 0:00:23]} 58. Rc5 {[%emt 0:00:13]} Bf7 {[%emt 0:00:13]} 59. Kh4 {[%emt 0:00:45]} Rd7 {[%emt 0:00:49]} 60. g5 {[%emt 0:00:29]} hxg5+ {[%emt 0:00:09]} 61. Rxg5 {[%emt 0:00:26]} Bb3 {[%emt 0:00:17]} 62. Rb5 {[%emt 0:00:14]} Bd1 {[%emt 0:00:21]} 63. Rg5 {[%emt 0:00:24]} Bc2 {[%emt 0:00:12]} 64. Rg2 {[%emt 0:00:16]} Bd3 {[%emt 0:00:23]} 65. Rd2 {[%emt 0:00:42]} Bf5 {[%emt 0:02:10]} 66. Rf2 {[%emt 0:00:04]} Bd3 {[%emt 0:00:11]} 67. Rb2 {[%emt 0:00:24]} Rc7 {[%emt 0:00:11]} 68. Bd2 {[%emt 0:00:54]} Rc2 {[%emt 0:00:10]} 69. Rxc2 {[%emt 0:00:06]} Bxc2 {[%emt 0:00:05]} 1/2-1/2

[Event "35th Roquetas Festival 2024"]
[Site "Roquetas de Mar"]
[Date "2024.01.05"]
[Round "6.11"]
[White "Camacho Collados, Jose"]
[Black "Bru Rullo, Llatzer"]
[Result "1-0"]
[ECO "B40"]
[WhiteElo "2381"]
[BlackElo "2278"]
[Annotator "RC"]
[PlyCount "53"]
[EventDate "2024.01.02"]
[EventType "swiss"]
[EventCountry "ESP"]
[SourceTitle "playchess.com"]
[Source "ChessBase"]
[SourceQuality "1"]
[TimeControl "5400+30"]

1. e4 {[%emt 0:01:30]} c5 {[%emt 0:00:11]} 2. Nf3 {[%emt 0:00:07]} e6 {[%emt 0:00:24]} 3. d3 {[%emt 0:00:06]} Nc6 {[%emt 0:00:25]} 4. g3 {[%emt 0:00:07]} Nf6 {[%emt 0:00:37]} 5. Bg2 {[%emt 0:00:23]} d6 {[%emt 0:00:08]} 6. O-O {[%emt 0:00:53]} Be7 {[%emt 0:00:10]} 7. Re1 {[%emt 0:02:14]} O-O {[%emt 0:00:11]} 8. c3 {[%emt 0:01:06]} Bd7 {[%emt 0:00:26]} 9. a3 {[%emt 0:02:07]} Qc7 {[%emt 0:06:32]} 10. b4 {[%emt 0:03:16]} Rfd8 {[%emt 0:04:53]} 11. bxc5 {[%emt 0:08:11]} dxc5 {[%emt 0:00:10]} 12. e5 {[%emt 0:00:08]} Nd5 {[%emt 0:01:27]} 13. c4 {[%emt 0:07:12]} Nb6 {[%emt 0:00:49]} 14. Nc3 {[%emt 0:05:08]} Be8 {[%emt 0:04:14]} 15. Qe2 {[%emt 0:06:56]} a6 {[%emt 0:09:56]} 16. Rb1 {[%emt 0:02:50]} Rab8 {[%emt 0:03:59]} 17. Bf4 {[%emt 0:02:54]} Nc8 {[%emt 0:13:43]} 18. h4 {[%emt 0:16:18]} Qd7 {[%emt 0:06:43]} 19. Red1 {[%emt 0:00:22]} Nd4 {[%emt 0:04:33]} 20. Nxd4 {[%emt 0:00:24]} Qxd4 {[%emt 0:01:23]} 21. Ne4 {[%emt 0:02:16]} Kh8 {[%emt 0:18:31]} 22. Be3 {[%emt 0:03:00]} Qd7 {[%emt 0:00:16]} 23. Nxc5 {[%emt 0:00:31]} Qc7 {[%emt 0:01:00]} 24. Rxb7 {[%emt 0:01:40]} Rxb7 {[%emt 0:00:14]} 25. Nxb7 {[%emt 0:00:11]} Rd7 {[%emt 0:00:05]} 26. c5 {[%emt 0:07:04]} Qxe5 {[%emt 0:00:24]} 27. d4 {[%emt 0:00:22]} 1-0

[Event "35th Roquetas Festival 2024"]
[Site "Roquetas de Mar"]
[Date "2024.01.05"]
[Round "6.12"]
[White "Gomez Sanjuan, Hector Fernando"]
[Black "Bernal Moro, Luis Javier"]
[Result "1/2-1/2"]
[ECO "E91"]
[WhiteElo "2139"]
[BlackElo "2370"]
[Annotator "ChessBase"]
[PlyCount "60"]
[EventDate "2024.01.02"]
[EventType "swiss"]
[EventCountry "ESP"]
[SourceTitle "playchess.com"]
[Source "ChessBase"]
[SourceQuality "1"]
[TimeControl "5400+30"]

1. d4 {[%emt 0:05:17]} Nf6 {[%emt 0:01:38]} 2. c4 {[%emt 0:00:08]} g6 {[%emt 0:00:20]} 3. Nc3 {[%emt 0:00:04]} Bg7 {[%emt 0:00:07]} 4. e4 {[%emt 0:00:05]} d6 {[%emt 0:00:05]} 5. Nf3 {[%emt 0:00:05]} O-O {[%emt 0:00:12]} 6. Be2 {[%emt 0:00:05]} Nbd7 {[%emt 0:00:17]} 7. O-O {[%emt 0:00:12]} e5 {[%emt 0:00:09]} 8. Qc2 {[%emt 0:00:10]} c6 {[%emt 0:04:38]} 9. d5 {[%emt 0:02:34]} c5 {[%emt 0:03:35]} 10. Bg5 {[%emt 0:00:19]} h6 {[%emt 0:03:12]} 11. Bd2 {[%emt 0:03:25]} Nh7 {[%emt 0:06:19]} 12. g3 {[%emt 0:01:37]} Kh8 {[%emt 0:12:31]} 13. a3 {[%emt 0:02:31]} Ng5 {[%emt 0:23:44]} 14. Nxg5 {[%emt 0:23:39]} hxg5 {[%emt 0:00:06]} 15. Bg4 {[%emt 0:00:15]} Bf6 {[%emt 0:11:50]} 16. f3 {[%emt 0:04:06]} Be7 {[%emt 0:01:08]} 17. Bxd7 {[%emt 0:01:04]} Bxd7 {[%emt 0:06:26]} 18. g4 {[%emt 0:00:25]} Kg7 {[%emt 0:03:40]} 19. Kg2 {[%emt 0:01:51]} f5 {[%emt 0:04:46]} 20. h3 {[%emt 0:00:25]} Qc8 {[%emt 0:00:24]} 21. Qd1 {[%emt 0:01:14]} Rf7 {[%emt 0:01:42]} 22. Qe2 {[%emt 0:01:54]} Qc7 {[%emt 0:00:36]} 23. Be3 {[%emt 0:03:53]} a6 {[%emt 0:04:07]} 24. Rac1 {[%emt 0:04:41]} Rc8 {[%emt 0:00:17]} 25. Qd2 {[%emt 0:03:50]} Qd8 {[%emt 0:02:08]} 26. Qe2 {[%emt 0:01:02]} Qc7 {[%emt 0:00:08]} 27. Rb1 {[%emt 0:03:32]} b6 {[%emt 0:04:17]} 28. Rfc1 {[%emt 0:01:48]} f4 {[%emt 0:00:57]} 29. Bf2 {[%emt 0:00:15]} Rff8 {[%emt 0:00:04]} 30. b4 {[%emt 0:09:07]} Rb8 {[%emt 0:00:06]} 1/2-1/2